Cogmind - Beta 9.3 @@@ ROGUE MODE // 2019.12.31 @ 07:04:45 // Winter2019/RPGLIKE Player: BadAss McGhee Result: Destroyed by Y-45 Defender with Heavy Assault Rifle Performance ------------- Evolutions (1) 500 Regions Visited (2) 400 Robots Destroyed (27) 135 Value Destroyed (636) 636 Prototype IDs (1) 20 Alien Tech Used (0) 0 Bonus (0) 0 TOTAL SCORE: 1691 Bonus ------- None Cogmind --------- Core Integrity 0/750 Matter 269/300 Energy 315/315 System Corruption 0% Temperature Cool (9) Movement Walking (120) Location -9/Materials Parts ------- > --- POWER (1) -------- Improved Ion Engine > --- PROPULSION (2) --- Aluminum Leg Aluminum Leg > --- UTILITY (3) ------ Sensor Array Signal Interpreter Seismic Analyzer > --- WEAPON (2) ------- Particle Gun EMP Blaster > --- INVENTORY (2) ---- Advanced Beam Cannon Datajack Peak State ------------ > --- POWER ------------ Improved Ion Engine > --- PROPULSION ------- Aluminum Leg Aluminum Leg > --- UTILITY ---------- Sensor Array Signal Interpreter Hacking Suite > --- WEAPON ----------- Particle Gun EMP Blaster > --- INVENTORY -------- Advanced Beam Cannon Datajack [Rating: 13] Favorites ----------- Power Ion Engine Engine Ion Engine Propulsion Aluminum Leg Leg Aluminum Leg Utility Signal Interpreter Device Sensor Array Processor Signal Interpreter Hackware Hacking Suite Weapon Medium Laser Energy Gun Medium Laser Energy Cannon Advanced Beam Cannon Launcher EMP Blaster Build | -11 -10 -9 ------- Run | Scr Mat Mat Slots Evolved 4 | 3 . 1 Power . | . . . Propulsion 1 | 1 . . Utility 2 | 1 . 1 Weapon 1 | 1 . . Parts Attached 19 | 5 11 3 Power 3 | 1 2 . Engine 3 | 1 2 . Core . | . . . Reactor . | . . . Propulsion 3 | 2 1 . Treads . | . . . Leg 3 | 2 1 . Wheel . | . . . Hover . | . . . Flight . | . . . Utility 5 | . 3 2 Device 2 | . 2 . Storage . | . . . Processor 2 | . 1 1 Hackware 1 | . . 1 Protection . | . . . Artifact . | . . . Weapon 8 | 2 5 1 Energy Gun 6 | 2 3 1 Energy Cannon 1 | . 1 . Ballistic Gun . | . . . Ballistic Cannon . | . . . Launcher 1 | . 1 . Special Weapon . | . . . Impact Weapon . | . . . Slashing Weapon . | . . . Piercing Weapon . | . . . Special Melee Weapon . | . . . Unidentified Prototypes 1 | . 1 . Parts Lost 1 | . 1 . Power . | . . . Propulsion . | . . . Utility . | . . . Weapon 1 | . 1 . Highest Loss Streak 1 | . 1 . Average Slot Usage (%) 95 | . 94 99 Engine 13 | . 14 12 Leg 27 | . 28 25 Device 10 | . 9 12 Processor 13 | . 13 13 Hackware 2 | . . 9 Energy Gun 22 | . 27 11 Launcher 3 | . . 12 Naked Turns . | . . . Heaviest Build 15 | 9 14 15 Greatest Support 25 | 25 25 25 Greatest Overweight (x) . | . . . Average Overweight (x) . | . . . Largest Inventory Capacity 2 | 2 2 2 Average Capacity 2 | 2 2 2 Most Carried 2 | 1 2 2 Average Carried 1 | . 1 2 Final Capacity 2 | 2 2 2 Final Carried 2 | 1 2 2 Class Distribution -------------------- 79% | Mutant 20% | Skirmisher Dominant Class ---------------- Mutant | -10/Materials Skirmisher | -9/Materials Resources | -11 -10 -9 ----------- Run | Scr Mat Mat Matter Collected 409 | 250 54 105 Remotely . | . . . Salvage Created 711 | . 404 307 Parts 46 | . 26 20 Haulers Intercepted . | . . . Recyclers Shooed . | . . . Parts Field Recycled . | . . . Retrieved Matter . | . . . Parts Self-Destructed . | . . . Prevented . | . . . Kills | -11 -10 -9 ------- Run | Scr Mat Mat Combat Hostiles Destroyed 18 | . 9 9 Guns 16 | . 9 7 AOE 2 | . . 2 Classes Destroyed 8 | . 4 4 Worker 1 | . . 1 Builder 1 | . . 1 Tunneler 1 | . . 1 Operator 3 | . 1 2 Watcher 3 | . 2 1 Swarmer 8 | . 2 6 Grunt 9 | . 7 2 Sentry 1 | . . 1 Best Kill Streak 6 | . 2 6 Combat Bots Only 4 | . 2 4 Max Kills in Single Turn 2 | . 1 2 Gunslinging . | . . . Exploded 2 | . . 2 Melee . | . . . Uniques/NPCs Destroyed . | . . . Combat | -11 -10 -9 -------- Run | Scr Mat Mat Damage Taken 1243 | . 646 597 Core 1002 | . 525 477 Absorbed by Shields . | . . . Redirected to Core 815 | . 403 412 Core Remaining (%) 79 | 100 58 . Volleys Fired 87 | . 55 32 Largest 2 | . 2 2 Hottest 98 | . 90 98 Shots Fired 152 | . 110 42 Gun 142 | . 110 32 Cannon . | . . . Launcher 10 | . . 10 Special . | . . . Kinetic . | . . . Thermal 87 | . 55 32 Explosive . | . . . Electromagnetic 65 | . 55 10 Robot Hit Streak 15 | . 15 9 Robot Miss Streak 4 | . 4 4 Penetration Max . | . . . Secondary Targets . | . . . Shots Hit Robots 98 | . 70 28 Core Hits 37 | . 21 16 Critical Hits . | . . . Critical Kills . | . . . Critical Parts Destroyed . | . . . Melee Attacks . | . . . Impact . | . . . Slashing . | . . . Piercing . | . . . Sneak Attacks . | . . . Combat Hostiles . | . . . Follow-up Attacks . | . . . Damage Inflicted 1937 | . 930 1007 Guns 1294 | . 930 364 Cannons . | . . . Explosions 643 | . . 643 Melee . | . . . Ramming . | . . . Kinetic . | . . . Thermal 773 | . 374 399 Explosive 388 | . . 388 Electromagnetic 776 | . 556 220 Impact . | . . . Slashing . | . . . Piercing . | . . . Highest Corruption . | . . . Average Corruption . | . . . Corruption Purged . | . . . Overload Shots . | . . . Overflow Damage 147 | . . 147 Projectiles . | . . . Explosions 147 | . . 147 Melee . | . . . Knockbacks . | . . . Impact . | . . . Kinetic . | . . . Secondary . | . . . Self-Inflicted Damage 193 | . . 193 Shots 4 | . . 4 Rammed . | . . . Targets Rammed . | . . . Kicked . | . . . Crushed . | . . . Highest Temperature 43 | . 43 4 Average Temperature 12 | . 13 3 Received Heat Transfer 297 | . 252 45 Siege Activations . | . . . Robots Corrupted . | . . . Combat Hostiles . | . . . Parts Fried 1 | . . 1 Impact Corruptions . | . . . Robots Melted . | . . . Combat Hostiles . | . . . Parts Melted 4 | . 2 2 Heat Transferred 2048 | . 1110 938 Parts Sabotaged . | . . . Parts Stolen . | . . . Parts Stripped . | . . . Power Chain Reactions 1 | . . 1 Missiles Intercepted . | . . . Alert | -11 -10 -9 ------- Run | Scr Mat Mat Peak Influence 395 | . 242 395 Average Influence 131 | . 115 184 Maximum Alert Level 1 | . 1 1 Low Security (%) 65 | 100 78 29 Level 1 34 | . 21 70 Level 2 . | . . . Level 3 . | . . . Level 4 . | . . . Level 5 . | . . . High Security . | . . . Max Security . | . . . Squads Dispatched 3 | . 2 1 Investigation . | . . . Extermination . | . . . Reinforcement 3 | . 2 1 Assault . | . . . Garrison . | . . . Intercept . | . . . Construction Impeded 1 | . . 1 Haulers Reinforced . | . . . Stealth | -11 -10 -9 --------- Run | Scr Mat Mat Distress Signals 4 | . 3 1 Communications Jammed . | . . . Distress Signals . | . . . Times Spotted 43 | . 23 20 Peak Tracking Total 5 | . 5 5 Tactical Retreats 2 | . . 2 Traps | -11 -10 -9 ------- Run | Scr Mat Mat Traps Triggered . | . . . Indirectly . | . . . Trap Hack Attempts . | . . . Triggered . | . . . Disarmed 5 | . . 5 Reprogrammed . | . . . Reused . | . . . Traps Extracted . | . . . Installed . | . . . Triggered . | . . . Machines | -11 -10 -9 ---------- Run | Scr Mat Mat Machines Disabled 7 | . . 7 Max in Single Turn 2 | . . 2 Machines Sabotaged . | . . . Garrisons Compromised . | . . . Overloaded Fab Kills . | . . . Fab Network Shutdowns . | . . . Hacking | -11 -10 -9 --------- Run | Scr Mat Mat Machines Accessed 6 | . 4 2 Terminals 5 | . 3 2 Fabricators . | . . . Repair Stations 1 | . 1 . Recycling Units . | . . . Scanalyzers . | . . . Garrison Access . | . . . Total Hacks 13 | . 7 6 Successful 8 | . 5 3 Failed 5 | . 2 3 Catastrophic . | . . . Database Lockouts . | . . . Manual . | . . . Terminals 11 | . 5 6 Fabricators . | . . . Repair Stations 2 | . 2 . Recycling Units . | . . . Scanalyzers . | . . . Garrison Access . | . . . Terminal Hacks 6 | . 3 3 Branch Access Points 1 | . . 1 Locate Traps 1 | . 1 . Disarm Traps 1 | . . 1 Hauler Manifests 2 | . 1 1 Zone Layout 1 | . 1 . Fabricator Hacks . | . . . Repair Station Hacks 2 | . 2 . Scan Component 1 | . 1 . Repair 1 | . 1 . Recycling Unit Hacks . | . . . Scanalyzer . | . . . Garrison Access Hacks . | . . . Unauthorized Hacks . | . . . Terminals . | . . . Fabricators . | . . . Repair Stations . | . . . Recycling Units . | . . . Scanalyzers . | . . . Garrison Access . | . . . Data Cores Recovered 1 | . . 1 Used 1 | . . 1 Hacking Detections 5 | . 3 2 Full Trace Events . | . . . Feedback Events . | . . . Feedback Blocked . | . . . Robot Schematics Acquired . | . . . Robots Built . | . . . Matter . | . . . Time . | . . . Total Robot Build Rating . | . . . Part Schematics Acquired . | . . . Parts Built . | . . . Matter . | . . . Time . | . . . Total Part Build Rating . | . . . Parts Repaired 1 | . 1 . Time 26 | . 26 . Parts Recycled . | . . . Recycled Matter . | . . . Retrieved Matter . | . . . Retrieved Components . | . . . Parts Scanalyzed . | . . . Part Schematics Acquired . | . . . Parts Damaged . | . . . Bothacking | -11 -10 -9 ------------ Run | Scr Mat Mat Used RIF Installer . | . . . Robots Hacked . | . . . Non-combat . | . . . Combat . | . . . Robot Hacks Applied . | . . . Relay Couplers Released . | . . . Robots Rewired . | . . . Allies Hacked . | . . . Hacks Repelled . | . . . Allies | -11 -10 -9 -------- Run | Scr Mat Mat Total Allies . | . . . Largest Group . | . . . Highest-Rated Group . | . . . Highest-Rated Ally . | . . . Total Orders . | . . . Ally Attacks . | . . . Total Damage . | . . . Kills . | . . . Allies Corrupted . | . . . Allies Melted . | . . . Intel | -11 -10 -9 ------- Run | Scr Mat Mat Robot Analysis Total . | . . . Derelict Logs Recovered . | . . . Drone Launches . | . . . Drone Recoveries . | . . . Exploration | -11 -10 -9 ------------- Run | Scr Mat Mat Turns Passed 1409 | 45 964 400 Spaces Moved 832 | 33 540 259 Core 4 | 4 . . Treads . | . . . Legs 828 | 29 540 259 Wheels . | . . . Hover . | . . . Flight . | . . . Fastest Speed 50 | 50 120 120 Average Speed 119 | 111 120 120 Slowest Speed 120 | 120 120 120 Overloaded Moves . | . . . Propulsion Burnouts . | . . . Robots Hopped . | . . . Cave-ins Triggered . | . . . Exploration Rate (%) 43 | 4 89 38 Regions Visited 2 Branch Regions . Pre-discovered Areas . | . . . Known Exits Taken 1 | . 1 . Unknown Exits Taken 1 | 1 . . Scrap Searched . | . . . Spaces Dug . | . . . Terrain Destroyed 49 | . . 49 Melee . | . . . Projectile . | . . . AOE 49 | . . 49 Actions | -11 -10 -9 --------- Run | Scr Mat Mat Total 1090 | 38 747 305 Wait 127 | . 118 9 Move 830 | 32 539 259 Hop . | . . . Pick Up 4 | 1 3 . Fast Attach 13 | 5 5 3 Attach . | . . . Detach . | . . . Swap 7 | . 7 . Drop 10 | . 8 2 Fire 87 | . 55 32 Melee . | . . . Ram . | . . . Kick . | . . . Crush . | . . . Escape Stasis . | . . . Rewire . | . . . Trap . | . . . Miscellaneous 12 | . 12 . Route ------- -11/Scrapyard -10/Materials (discovered 4 exits: *Mat x2 / *Min x2) -9/Materials (discovered 3 exits: *Mat x2 / Min) History --------- Turn | Location | Event 1 | -11/Scrapyard | Upgraded with Propulsion slot (x1) 1 | -11/Scrapyard | Upgraded with Utility slot (x1) 1 | -11/Scrapyard | Upgraded with Weapon slot (x1) 25 | -11/Scrapyard | Discovered new exit (range 13) 46 | -11/Scrapyard | Entered Materials 282 | -10/Materials | Discovered new exit (range 8) 290 | -10/Materials | Identified exit to Mines 305 | -10/Materials | Build established: Mutant 506 | -10/Materials | Core integrity fell below 50% 558 | -10/Materials | Discovered exit to Mines (range 14) 640 | -10/Materials | Repaired Med. Laser 655 | -10/Materials | Discovered new exit (range 16) 895 | -10/Materials | Discovered new exit (range 17) 1009 | -10/Materials | Identified exit to Materials 1010 | -10/Materials | Entered another Materials area 1012 | -9/Materials | Reached level 2 1015 | -9/Materials | Upgraded with Utility slot (x1) 1110 | -9/Materials | Core integrity fell below 50% 1120 | -9/Materials | Discovered new exit (range 17) 1123 | -9/Materials | Reached level 3 1147 | -9/Materials | Identified exit to Mines 1253 | -9/Materials | Discovered new exit (range 17) 1273 | -9/Materials | Identified exit to Materials 1391 | -9/Materials | Core integrity fell below 20% 1410 | -9/Materials | Destroyed by Y-45 Defender with Heavy Assault Rifle Last Messages --------------- 01248_ S-10 Pest destroyed. 01250_ Acquired 12 matter. 01253_ EXIT=FOUND 01273_ EXIT=IDENTIFIED: MATERIALS 01322_ W-16 Scout sends out distress signal. 01334_ S-10 Pest destroyed. 01337_ Acquired 14 matter. 01340_ Door malfunctions. 01340_ T-07 Excavator destroyed. 01343_ Chain reaction triggered in Lgt. Ion Engine. 01346_ Destroyed Beam Rifle. 01349_ Heat Sink melted. 01349_ Y-45 Defender destroyed. 01359_ Acquired 9 matter. 01360_ Discarded Hacking Suite. 01362_ Acquired Seismic Analyzer. 01364_ Acquired 70 matter. 01379_ S-10 Pest destroyed. 01408_ Flight Unit melted. 01408_ S-10 Pest destroyed. Map ----- +----------------------------------------------------+ | | | | | | | | | | | ???????????????????????????????????????? | | ???????????????????????????????????????? | | ???????????????????????????????????????? | | ???????????????????????????????????????? | | ???????????????????????????????????????? | | ???????????????????????????????????????? | | ???????????????????????????????????????? | | ???????????????????????????????????????? | | ????????????????????????x??????????????? | | ?????????????????????????x?????##??????? | | ??????????????????????????????# #?????? | | ??????????????????????????????# #?????? | | ??????????????????????????????+ +?????? | | ??????????????????????????????# #?????? | | ????????????????????#????????## ##????? | | ????????????????????# ???????# #????? | | ????????????????????# ?????? #????? | | ????????????????????# ?????? ?????? | | ????????????????????# ?????? ?????? | | ?????????????????????# x####### #?????? | | ?????????????????????# =#@*%= # #?##### | | ?????????????????????# %Y*""" # #? # | | ?????????????? #%""" # # # | | ????????? #[""" # # # | | ???????? ##+####### #%" = # """ # | | ?????????????????????# # = """ # | | ?????????????????????# # #! """ # | | ?????????????????????# ###### # | | ?????????????????????# #????# ####### | | ?????????????????????# #????# #????? | | ?????????????????????# #????# #????? | | ???????????????####### ######* #????? | | ????????????+ x = [ #????? | | ??????????????######## #######+####???? | | ??????????????# # #??# """ #??? | | ??????????????# # #??# "R" #??? | | ??????######### + #??# " " #??? | | + # #??# #??? | | ?????########## # #??# #??? | | ??????????????# # #??# """ #??? | | ??????????????######## #??# """ #??? | | ?????????????????????# #??# """ #??? | | ?????????????????????# #??# #??? | | ?????????????????????# #??#######?????? | | ?????????????????????# #??????????????? | +----------------------------------------------------+ Best States ------------- Heat Dissipation 43 Energy Generation 17 Energy Capacity 315 Matter Stores 300 Matter Capacity 300 Sight Range 18 Robot Scan Range 14 Terrain Scan Density 60 Evasion (%) 40 Offensive Hacking 10 Item Schematics ----------------- None Robot Schematics ------------------ None Fabricated ------------ Nothing Alien Tech Used ----------------- None Achievements -------------- None Challenges ------------ None RPGLIKE | -11 -10 -9 --------- Run | Scr Mat Mat Levels Raised 2 | . . 2 XP Earned 7280 | 3000 1170 3110 XP Spent 4490 | 2995 . 1495 Upgrades 19 | 11 . 8 Propulsion Slot 1 | 1 . . Utility Slot 2 | 1 . 1 Weapon Slot 1 | 1 . . Core Integrity 3 | 1 . 2 Heat Dissipation 3 | 2 . 1 Energy Generation 1 | 1 . . Energy Storage 1 | 1 . . Mass Support 1 | 1 . . Inventory Capacity 2 | 2 . . Sight Range 2 | . . 2 Sensor Range 2 | . . 2 Protomatter Created 143 | . 112 31 Integrity Restored 252 | . 252 . Core 252 | . 252 . Protomatter Decayed 28 | . 28 . Game ------ Seed RegenerativeSeismicFlakker Manual? 0 Play Time 00:19:27 Cumulative 61.6 hours Start 2019.12.31 @ 06:46:11 End 2019.12.31 @ 07:04:45 Sessions 1 Manual Loads 0 Difficulty Rogue Special Mode Winter2019/RPGLIKE Game No. 72 Rogue 72 Adventurer 0 Explorer 0 Win Type - Total 0 Types 0/0/0/0/0/0/0 Lore% 11 Gallery% 29 Achievement% 19 Wizard Run 0 Options --------- ASCII 0 Keyboard 0 Movement Mouse Keybinds 0 Fullscreen 1 Font 18/SmallcapsGlow Map View 76x50 Tactical HUD 1 Map Filters NONE Filters NONE Steam 1 RUN: 1602d318-a0e2-4619-b79e-2665d7886516